bitfinex/quotes_SOLUSD_20250621
["timestamp","ask_amount","ask_price","bid_price","bid_amount"]
[1750545405120,11.21905564,134.23,134.2,7.45156482]
[1750545405633,5.56114063,134.22,134.2,7.45156482]
[1750545406110,16.78019627,134.23,134.2,7.45156482]
[1750545407222,5.56114063,134.23,134.2,7.45156482]
[1750545407430,11.21905564,134.23,134.2,7.45156482]
[1750545408434,11.21905564,134.22,134.2,7.45156482]
[1750545408615,11.21905564,134.21,134.19,89.1]
[1750545408806,11.21905564,134.2,134.19,89.1]
[1750545409006,17.48711179,134.2,134.17,7.45316741]
[1750545409240,11.21905564,134.19,134.16,96.55356217]
[1750545409418,11.21905564,134.18,134.16,7.45356217]
[1750545409827,11.21905564,134.18,134.15,14.39412021]
[1750545410025,11.21905564,134.18,134.15,15.14412021]
[1750545411515,11.21905564,134.17,134.15,14.39412021]
[1750545411716,11.21905564,134.16,134.13,8.20542433]
[1750545411921,16.78989749,134.15,134.12,6.94]
[1750545412131,11.21905564,134.14,134.12,6.94]
[1750545412528,16.78605413,134.15,134.12,6.94]
[1750545413747,11.21905564,134.14,134.12,6.94]
[1750545414436,11.21905564,134.14,134.12,14.39545981]
[1750545415653,11.21905564,134.14,134.12,7.45545981]
[1750545416316,26.0,134.16,134.13,0.75]
[1750545416675,11.21905564,134.19,134.15,0.75]
[1750545416945,37.21905564,134.19,134.15,11.96905564]
[1750545417139,37.21905564,134.19,134.15,11.21905564]
[1750545417349,37.21905564,134.19,134.16,0.75]
[1750545417562,11.21905564,134.18,134.12,26.09548366]
[1750545417714,11.21905564,134.18,134.15,0.75]
[1750545418533,37.21905564,134.19,134.16,7.45378652]
[1750545419846,11.21905564,134.18,134.16,7.45378652]
[1750545420146,26.0,134.19,134.16,0.75]
[1750545420340,26.0,134.19,134.16,11.96905564]
[1750545420853,11.21905564,134.2,134.17,0.75]
[1750545422043,37.21905564,134.21,134.17,0.75]
[1750545422344,11.21905564,134.19,134.16,7.45363821]
[1750545423864,11.21905564,134.18,134.16,7.45363821]
[1750545424156,11.21905564,134.18,134.16,96.55363821]
[1750545424759,11.21905564,134.18,134.16,7.45363821]
[1750545426559,11.21905564,134.17,134.15,103.49416155]
[1750545426726,11.21905564,134.16,134.12,97.30586598]
[1750545427076,11.21905564,134.15,134.13,0.75]
[1750545427870,11.21905564,134.15,134.12,96.55586598]
[1750545428042,11.21905564,134.15,134.12,97.30586598]
[1750545428965,26.0,134.16,134.12,96.55586598]
[1750545429170,37.21905564,134.16,134.12,96.55586598]
[1750545429375,32.7429,134.19,134.13,0.75]
[1750545429376,11.21905564,134.17,134.13,0.75]
[1750545429555,11.21905564,134.17,134.14,0.75]
[1750545430066,37.21905564,134.18,134.14,0.75]
[1750545430367,11.21905564,134.19,134.15,0.75]
[1750545430571,11.21905564,134.19,134.15,11.21905564]
[1750545430801,11.21905564,134.19,134.16,0.75]
[1750545431070,11.21905564,134.19,134.17,7.45323097]
[1750545433669,11.21905564,134.19,134.17,8.13323097]
[1750545433972,11.21905564,134.19,134.17,7.45323097]
[1750545434371,26.69,134.17,134.14,7.45479988]
[1750545434549,11.21905564,134.15,134.14,7.45479988]
[1750545435054,26.0,134.17,134.12,7.45600954]
[1750545435260,11.21905564,134.16,134.13,0.68]
[1750545435574,11.21905564,134.16,134.13,89.78]
[1750545435774,11.21905564,134.14,134.13,89.1]
[1750545435957,11.21905564,134.14,134.12,7.45600954]
[1750545436160,11.21905564,134.15,134.12,7.45600954]
[1750545436352,11.21905564,134.15,134.12,8.13600954]
[1750545436558,11.21905564,134.15,134.12,7.45600954]
[1750545437167,11.21905564,134.15,134.12,8.13600954]
[1750545437758,11.21905564,134.14,134.12,7.45600954]
[1750545438149,26.0,134.17,134.13,0.68]
[1750545438348,26.0,134.2,134.15,11.89905564]
[1750545438551,26.0,134.2,134.16,0.68]
[1750545438552,37.21905564,134.2,134.16,0.68]
[1750545438757,37.21905564,134.2,134.12,26.09603339]
[1750545438758,11.21905564,134.17,134.13,0.68]
[1750545439061,11.21905564,134.17,134.14,0.68]
[1750545439267,11.21905564,134.17,134.15,7.45434215]
[1750545440559,5.55503146,134.19,134.15,8.13434215]
[1750545440759,11.21905564,134.18,134.15,8.13434215]
[1750545443361,11.21905564,134.18,134.15,7.45434215]
[1750545443872,11.21905564,134.16,134.13,7.45545366]
[1750545444075,11.21905564,134.14,134.13,89.1]
[1750545444287,11.21905564,134.14,134.12,7.45596151]
[1750545448475,11.21905564,134.13,134.11,14.3965334]
[1750545449658,11.21905564,134.12,134.11,6.94]
[1750545450457,11.90905564,134.12,134.11,6.94]
[1750545450657,16.78668014,134.12,134.11,6.94]
[1750545450852,11.21905564,134.12,134.11,6.94]
[1750545451782,5.56650319,134.13,134.11,6.94]
[1750545452087,11.21905564,134.12,134.11,6.94]
[1750545452286,5.56650319,134.13,134.11,15.0765655]
[1750545452467,37.21905564,134.14,134.12,0.68]
[1750545452669,11.21905564,134.15,134.12,0.68]
[1750545452879,16.7869408,134.15,134.12,0.68]
[1750545453057,11.21905564,134.15,134.12,0.68]
[1750545453581,16.78871776,134.15,134.12,0.68]
[1750545453784,26.0,134.16,134.12,0.68]
[1750545453966,37.21905564,134.16,134.13,0.68]
[1750545454789,11.21905564,134.15,134.13,7.45531141]
[1750545455080,16.78914621,134.15,134.13,7.45531141]
[1750545455583,11.21905564,134.15,134.13,7.45531141]
[1750545455773,16.78959692,134.15,134.12,7.45600954]
[1750545455978,11.21905564,134.15,134.12,7.45600954]
[1750545456773,16.78950788,134.15,134.12,7.45600954]
[1750545456978,11.21905564,134.15,134.12,7.45600954]
[1750545458693,16.78933877,134.15,134.12,8.13600954]
[1750545458897,11.21905564,134.15,134.12,8.13600954]
[1750545460195,37.21905564,134.16,134.12,37.99508903]
[1750545460769,42.78923887,134.16,134.12,127.09508903]
[1750545461293,11.21905564,134.15,134.12,115.87603339]
[1750545461678,16.78961905,134.15,134.12,115.87603339]
[1750545462077,11.21905564,134.15,134.12,115.87603339]
[1750545462404,16.78961905,134.15,134.12,97.23600954]
[1750545462776,11.21905564,134.15,134.12,97.23600954]
[1750545464798,37.21905564,134.16,134.13,0.7]
[1750545466600,16.79055224,134.15,134.13,89.1]
[1750545466802,17.48234408,134.14,134.11,14.39640507]
[1750545466978,0.69,134.11,134.07,7.45879018]
[1750545467178,11.21905564,134.08,134.05,14.37969945]
[1750545467380,11.21905564,134.07,134.05,6.92]
[1750545467704,11.21905564,134.06,134.05,6.92]
[1750545468087,11.21905564,134.06,134.01,90.6484]
[1750545468088,11.90905564,134.06,134.01,7.46212969]
[1750545468296,11.21905564,134.05,134.01,7.46212969]
[1750545468604,11.21905564,134.05,134.01,8.16212969]
[1750545468806,11.21905564,134.06,134.02,11.21905564]
[1750545468992,11.21905564,134.06,134.03,0.7]
[1750545469699,28.3128,134.09,134.03,11.91905564]
[1750545469903,31.56435742,134.09,134.06,11.91905564]
[1750545470206,11.21905564,134.12,134.08,0.7]
[1750545470402,11.21905564,134.12,134.08,11.91905564]
[1750545470604,44.32463247,134.13,134.08,11.91905564]
[1750545470798,18.32463247,134.13,134.09,7.45767767]
[1750545471002,12.76195564,134.13,134.09,7.45767767]
[1750545471304,38.76195564,134.13,134.09,7.45767767]
[1750545472199,38.76195564,134.13,134.09,8.15767767]
[1750545473002,46.24380336,134.13,134.09,8.15767767]
[1750545473595,51.80544267,134.13,134.09,8.15767767]
[1750545474191,46.24380336,134.13,134.09,8.15767767]
[1750545474504,18.70090336,134.12,134.09,8.15767767]
[1750545475004,46.24380336,134.13,134.09,8.15767767]
[1750545475407,46.24380336,134.13,134.09,7.45767767]
[1750545475603,18.70090336,134.11,134.09,89.1]
[1750545477308,18.70090336,134.1,134.09,89.1]
[1750545479013,26.0,134.1,134.09,96.55767767]
[1750545479413,18.70090336,134.11,134.09,96.55767767]
[1750545480402,18.70090336,134.1,134.09,89.1]
[1750545481496,18.70090336,134.1,134.07,7.45862175]
[1750545481497,18.70090336,134.1,134.07,8.15862175]
[1750545482196,20.24380336,134.13,134.1,7.45712155]
[1750545482420,18.70090336,134.12,134.09,8.15755087]
[1750545483000,18.70090336,134.11,134.09,7.45755087]
[1750545483572,27.84024036,134.17,134.09,7.45755087]
[1750545483880,18.70090336,134.15,134.11,18.70090336]
[1750545484179,5.56084561,134.15,134.12,0.7]
[1750545484365,5.56084561,134.15,134.13,7.45545366]
[1750545484551,5.56084561,134.16,134.13,8.15545366]
[1750545484752,25.8385943,134.17,134.13,26.85635702]
[1750545484956,25.8385943,134.17,134.13,8.15545366]
[1750545485569,20.27820336,134.17,134.13,8.15545366]
[1750545485752,20.27820336,134.17,134.13,26.85635702]
[1750545486459,18.70090336,134.16,134.13,8.15545366]
[1750545486978,18.70090336,134.15,134.13,7.45545366]
[1750545488298,18.70090336,134.15,134.12,7.45600954]
[1750545489083,18.70090336,134.13,134.1,7.45712155]
[1750545489282,18.70090336,134.12,134.1,7.45712155]
[1750545489464,18.70090336,134.12,134.1,96.55712155]
[1750545490677,18.70090336,134.11,134.1,96.55712155]
[1750545490901,18.70090336,134.12,134.1,96.55712155]
[1750545492479,18.70090336,134.13,134.1,96.55712155]
[1750545492873,11.22048276,134.13,134.1,96.55712155]
[1750545493073,16.78620713,134.13,134.1,96.55712155]
[1750545493271,11.22048276,134.13,134.1,96.55712155]
[1750545493579,11.22048276,134.12,134.1,96.55712155]
[1750545493888,11.22048276,134.11,134.1,89.1]
[1750545494080,11.22048276,134.11,134.09,89.1]
[1750545494286,11.22048276,134.1,134.08,7.45803742]
[1750545496082,11.22048276,134.09,134.06,6.92]
[1750545496389,16.78648795,134.1,134.07,0.72]
[1750545496586,16.78648795,134.11,134.07,0.72]
[1750545496788,11.22048276,134.11,134.07,0.72]
[1750545496971,11.22048276,134.1,134.07,0.72]
[1750545497979,5.56600519,134.11,134.08,7.45823389]
[1750545498297,11.22048276,134.1,134.08,7.45823389]
[1750545499963,38.86590519,134.12,134.06,96.02]
[1750545499964,11.22048276,134.09,134.06,96.02]
[1750545500184,11.22048276,134.07,134.03,0.72]
[1750545500390,37.22048276,134.06,134.03,0.72]
[1750545500785,37.22048276,134.06,134.03,7.46081304]
[1750545501090,11.22048276,134.05,134.03,7.46081304]
[1750545502291,11.22048276,134.04,134.02,14.3813801]
[1750545502593,26.0,134.08,134.04,0.72]
[1750545502797,26.0,134.08,134.05,0.72]
[1750545503098,11.22048276,134.09,134.05,0.72]
[1750545503273,11.22048276,134.09,134.05,11.94048276]
[1750545503474,11.22048276,134.1,134.07,0.72]
[1750545504068,11.22048276,134.1,134.08,7.45823389]
[1750545504293,11.22048276,134.11,134.08,8.17823389]
[1750545504987,11.22048276,134.11,134.08,7.45823389]
[1750545505691,11.22048276,134.1,134.08,7.45823389]
[1750545506074,11.22048276,134.1,134.07,7.45879018]
[1750545507477,11.22048276,134.09,134.07,7.45879018]
[1750545507991,11.22048276,134.09,134.07,96.55879018]
[1750545508996,11.22048276,134.1,134.07,96.55879018]
[1750545509506,11.22048276,134.1,134.07,97.27879018]
[1750545510171,11.22048276,134.1,134.07,96.55879018]
[1750545510369,5.56773019,134.09,134.04,11.22048276]
[1750545510591,11.22048276,134.09,134.05,0.72]
[1750545510896,11.22048276,134.08,134.06,7.45934656]
[1750545511695,11.22048276,134.08,134.05,7.45968702]
[1750545512000,16.78975427,134.08,134.05,7.45968702]
[1750545512197,11.22048276,134.08,134.05,7.45968702]
[1750545512593,16.78975427,134.08,134.05,7.45968702]
[1750545512793,11.22048276,134.08,134.04,7.46045956]
[1750545513095,11.22048276,134.08,134.04,18.68094232]
[1750545513692,11.22048276,134.08,134.04,7.46045956]
[1750545513893,11.22048276,134.08,134.04,18.68094232]
[1750545514093,11.22048276,134.06,134.03,7.46080725]
[1750545514802,11.22048276,134.04,134.02,6.92]
[1750545514978,11.22048276,134.04,134.02,14.38139343]
[1750545515781,11.22048276,134.05,134.02,14.38139343]
[1750545516493,37.22048276,134.06,134.03,0.72]
[1750545516789,11.22048276,134.04,134.02,14.38139343]
[1750545516989,26.0,134.03,134.02,6.92]
[1750545517196,37.95048276,134.03,134.0,89.1]
[1750545517398,32.2996667,134.03,133.99,7.46316647]
[1750545517716,26.0,134.02,133.99,8.18316647]
[1750545517888,11.22048276,134.04,134.0,11.22048276]
[1750545518206,37.22048276,134.04,134.01,0.72]
[1750545518583,37.22048276,134.04,133.99,26.84127528]
[1750545518788,11.22048276,134.02,133.99,7.46316647]
[1750545520192,32.29251489,134.04,133.99,7.46316647]
[1750545520514,11.22048276,134.03,133.99,8.18316647]
[1750545520716,26.0,134.04,134.01,0.72]
[1750545521100,37.22048276,134.04,134.01,0.72]
[1750545521605,37.22048276,134.04,134.01,7.46192046]
[1750545521803,11.22048276,134.03,134.0,7.46249264]
[1750545522213,11.22048276,134.02,133.98,11.22048276]
[1750545522396,11.22048276,134.02,133.98,0.73]
[1750545522595,11.22048276,134.01,133.98,0.73]
[1750545522911,11.22048276,134.01,133.97,11.22048276]
[1750545522912,11.22048276,134.01,133.97,11.95048276]
[1750545523101,11.22048276,134.01,133.97,19.41434285]
[1750545523497,11.22048276,133.98,133.95,14.38494441]
[1750545524213,11.22048276,133.97,133.95,6.92]
[1750545524390,18.64964886,134.0,133.95,6.92]
[1750545524591,11.22048276,133.97,133.95,6.92]
[1750545525897,0.7,134.0,133.93,89.1]
[1750545525898,11.22048276,133.96,133.93,89.1]
[1750545526098,33.9202,133.98,133.94,0.73]
[1750545526313,38.85608276,133.98,133.94,89.83]
[1750545526790,11.22048276,133.97,133.94,89.83]
[1750545527293,38.85608276,133.98,133.94,96.56584554]
[1750545527815,11.22048276,133.97,133.94,89.1]
[1750545528116,11.22048276,133.96,133.94,89.1]
[1750545528692,37.22048276,133.95,133.94,89.1]
[1750545529399,26.0,133.95,133.94,89.1]
[1750545530909,40.35958333,133.98,133.94,89.1]
[1750545530910,70.11608276,133.98,133.94,108.51651232]
[1750545531094,68.48048276,133.98,133.94,107.78651232]
[1750545531300,26.0,133.98,133.96,8.19491489]
[1750545531699,37.22048276,133.98,133.95,8.19542125]
[1750545531900,26.0,133.98,133.95,8.19542125]
[1750545532125,58.08450352,134.01,133.95,8.19542125]
[1750545532300,37.22048276,133.98,133.95,97.29542125]
[1750545533629,26.13382474,134.01,133.97,11.95048276]
[1750545533831,26.13382474,134.01,133.95,96.56542125]
[1750545533832,50.52002474,134.01,133.95,115.22910172]
[1750545534034,50.52002474,134.01,133.98,0.73]
[1750545534244,50.52002474,134.01,133.95,115.22910172]
[1750545534245,11.22048276,134.0,133.95,115.22910172]
[1750545534401,11.22048276,134.0,133.96,11.95048276]
[1750545534936,11.22048276,134.0,133.96,0.73]
[1750545535504,11.22048276,133.99,133.95,7.46542125]
[1750545535705,11.22048276,133.98,133.95,7.46542125]
[1750545536119,11.22048276,133.97,133.94,7.46584323]
[1750545536312,11.22048276,133.96,133.92,18.68762732]
[1750545536637,26.0,133.98,133.9,9.78455869]
[1750545536638,26.0,133.92,133.9,9.78455869]
[1750545536829,37.22048276,133.95,133.9,7.46805869]
[1750545537134,37.22048276,133.95,133.91,0.73]
[1750545537440,11.22048276,133.94,133.91,0.73]
[1750545537734,26.0,133.93,133.89,19.41930044]
[1750545538040,11.22048276,133.92,133.89,8.19881768]
[1750545538205,26.0,133.93,133.88,7.02]
[1750545538206,37.22048276,133.91,133.88,7.02]
[1750545539226,37.22048276,133.91,133.88,14.48935051]
[1750545539615,37.22048276,133.91,133.84,18.97048276]
[1750545539616,37.22048276,133.89,133.84,18.97048276]
[1750545539814,26.0,133.89,133.85,18.69115848]
[1750545540014,11.22048276,133.88,133.85,8.20067572]
[1750545540217,37.22048276,133.89,133.85,8.20067572]
[1750545540522,11.22048276,133.88,133.85,8.20067572]
[1750545540903,26.0,133.89,133.81,90.11381183]
[1750545540904,0.7,133.86,133.81,90.11381183]
[1750545541136,26.0,133.84,133.81,19.51240115]
[1750545541431,18.78240115,133.85,133.83,0.73]
[1750545541604,27.6584,133.87,133.83,0.73]
[1750545541937,18.78240115,133.85,133.83,7.47209557]
[1750545542130,27.6584,133.87,133.8,0.73]
[1750545542131,44.78240115,133.84,133.8,19.51240115]
[1750545542309,26.0,133.84,133.81,7.47314448]
[1750545542627,18.78240115,133.83,133.8,8.20371108]
[1750545542810,26.0,133.81,133.79,7.47425984]
[1750545543016,44.78240115,133.8,133.77,7.47551767]
[1750545543224,44.78240115,133.8,133.75,9.053581]
[1750545543225,18.78240115,133.78,133.75,9.053581]
[1750545543449,18.78240115,133.76,133.75,1.5773967]
[1750545543824,19.48240115,133.76,133.75,1.5773967]
[1750545544015,37.43205001,133.76,133.75,1.5773967]
[1750545544335,26.0,133.76,133.75,1.5773967]
[1750545544517,26.0,133.79,133.75,9.05403221]
[1750545544714,26.0,133.79,133.76,18.78240115]
[1750545544908,18.78240115,133.8,133.75,8.55403221]
[1750545545104,26.0,133.79,133.75,28.06643336]
[1750545545306,26.0,133.79,133.75,27.97562099]
[1750545545627,26.0,133.79,133.75,46.02802214]
[1750545545813,33.9784,133.85,133.78,18.78240115]
[1750545546018,18.78240115,133.85,133.79,18.64964886]
[1750545546223,34.6984,133.89,133.81,18.78240115]
[1750545546433,16.93127087,133.91,133.84,18.78240115]
[1750545546744,29.48787202,133.91,133.86,19.51240115]
[1750545546910,29.48787202,133.91,133.87,18.78240115]
[1750545547620,10.70547087,133.91,133.89,7.46881768]
[1750545549115,10.70547087,133.91,133.89,26.25121883]
[1750545549338,10.70547087,133.91,133.9,19.51240115]
[1750545549847,26.0,133.94,133.9,19.51240115]
[1750545550227,18.78240115,133.95,133.91,18.78240115]
[1750545550425,18.78240115,133.96,133.91,19.51240115]
[1750545550617,18.78240115,133.97,133.91,0.73]
[1750545550820,26.0,133.96,133.92,18.78240115]
[1750545551064,26.0,133.96,133.91,0.73]
[1750545551345,18.78240115,133.93,133.89,37.45444536]
[1750545551639,26.0,133.95,133.89,37.45444536]
[1750545551847,18.78240115,133.91,133.88,7.46937556]
[1750545552007,18.78240115,133.9,133.87,7.46978042]
[1750545552206,18.78240115,133.89,133.87,7.46978042]
[1750545552829,18.78240115,133.89,133.86,7.4703851]
[1750545553043,26.0,133.92,133.84,7.38]
[1750545553044,18.78240115,133.88,133.84,7.38]
[1750545553246,26.0,133.91,133.84,7.38]
[1750545553247,18.78240115,133.86,133.84,7.38]
[1750545553544,26.0,133.87,133.83,7.47216618]
[1750545553722,44.78240115,133.87,133.83,7.47216618]
[1750545553920,44.78240115,133.88,133.84,0.69]
[1750545554121,44.78240115,133.88,133.84,19.47240115]
[1750545554543,44.78240115,133.88,133.84,0.69]
[1750545554847,18.78240115,133.87,133.84,0.69]
[1750545555048,18.78240115,133.87,133.83,44.93498278]
[1750545555344,18.78240115,133.86,133.83,7.47216618]
[1750545555955,26.0,133.88,133.83,7.47216618]
[1750545556119,18.78240115,133.86,133.83,7.47216618]
[1750545556745,26.0,133.88,133.83,8.16216618]
[1750545557050,44.78240115,133.88,133.83,26.94456733]
[1750545557749,44.78240115,133.88,133.84,18.78240115]
[1750545557924,44.78240115,133.88,133.84,0.69]
[1750545558131,44.78240115,133.88,133.83,44.93498278]
[1750545558334,18.78240115,133.86,133.83,7.47216618]
[1750545558544,26.0,133.83,133.77,7.47551767]
[1750545558731,18.64964886,133.88,133.8,18.78240115]
[1750545558938,26.0,133.85,133.81,19.47240115]
[1750545559138,44.78240115,133.86,133.81,19.47240115]
[1750545559333,18.78240115,133.85,133.82,7.47272455]
[1750545559548,26.0,133.86,133.82,7.47272455]
[1750545559765,18.78240115,133.85,133.82,7.47272455]
[1750545561039,18.78240115,133.84,133.8,7.47384155]
[1750545561251,18.78240115,133.84,133.8,26.9462427]
[1750545561648,44.78240115,133.86,133.81,19.47240115]
[1750545561858,44.78240115,133.86,133.82,18.78240115]
[1750545561859,26.0,133.86,133.82,18.78240115]
[1750545562053,44.78240115,133.86,133.82,19.47240115]
[1750545562366,26.0,133.86,133.82,19.47240115]
[1750545563150,26.0,133.86,133.83,26.25456733]
[1750545563537,44.78240115,133.86,133.8,7.47384155]
[1750545563732,18.78240115,133.85,133.8,7.47384155]
[1750545563937,26.0,133.83,133.8,7.47384155]
[1750545564375,26.0,133.83,133.76,14.0348]
[1750545564376,26.0,133.83,133.76,7.76]
[1750545564582,26.0,133.83,133.75,45.72704556]
[1750545564583,33.3,133.82,133.75,1.0773967]
[1750545564864,44.78240115,133.78,133.75,8.55401921]
[1750545565068,26.0,133.78,133.75,8.55401921]
[1750545565567,26.0,133.78,133.75,9.24401921]
[1750545566873,18.78240115,133.76,133.75,1.0773967]
[1750545567468,26.0,133.77,133.75,1.0773967]
[1750545567770,18.78240115,133.76,133.75,1.0773967]
[1750545568136,26.0,133.77,133.75,1.0773967]
[1750545568336,29.82631767,133.78,133.75,1.0773967]
[1750545568337,64.15205001,133.76,133.75,1.0773967]
[1750545568540,44.78240115,133.76,133.75,1.0773967]
[1750545568840,6.9232915,133.81,133.75,1.0773967]
[1750545568841,44.78240115,133.77,133.75,1.0773967]
[1750545569041,26.0,133.77,133.75,8.55381905]
[1750545569759,26.0,133.77,133.75,1.0773967]
[1750545569945,44.78240115,133.77,133.75,1.0773967]
[1750545570145,18.78240115,133.76,133.75,1.0773967]
[1750545570343,44.78240115,133.76,133.75,1.0773967]
[1750545570963,26.72,133.76,133.75,1.0773967]
[1750545571169,64.15205001,133.76,133.75,1.0773967]
[1750545571466,38.15205001,133.76,133.75,1.0773967]
[1750545571841,26.84572541,133.76,133.75,1.0773967]
[1750545572038,45.62812656,133.76,133.75,1.0773967]
[1750545572348,47.24162656,133.76,133.75,1.0773967]
[1750545572655,26.0,133.76,133.75,1.0773967]
[1750545573040,26.19131143,133.79,133.75,1.0773967]
[1750545573263,26.0,133.78,133.75,1.0773967]
[1750545573482,26.19131143,133.79,133.75,1.0773967]
[1750545573894,26.0,133.78,133.75,1.0773967]
[1750545574080,26.19131143,133.78,133.75,1.0773967]
[1750545574272,26.19131143,133.77,133.75,1.0773967]
[1750545574993,26.0,133.78,133.75,8.55377821]
[1750545575371,26.0,133.78,133.75,1.0773967]
[1750545575585,52.19131143,133.78,133.75,1.0773967]
[1750545575966,26.0,133.78,133.75,8.55383527]
[1750545576161,26.19131143,133.77,133.75,8.55379796]
[1750545576588,52.19131143,133.78,133.75,8.55379796]
[1750545576790,52.19131143,133.78,133.75,1.0773967]
[1750545576996,26.0,133.78,133.75,8.55396073]
[1750545577179,52.19131143,133.78,133.75,8.55396073]
[1750545578590,26.0,133.78,133.75,1.0773967]
[1750545578794,52.19131143,133.76,133.75,1.0773967]
[1750545578978,26.0,133.76,133.75,1.0773967]
[1750545579688,26.0,133.76,133.75,8.55403221]
[1750545579998,52.19131143,133.76,133.75,1.0773967]
[1750545580174,24.17323114,133.76,133.75,1.0773967]
[1750545580374,44.64964886,133.76,133.75,1.0773967]
[1750545580575,52.19131143,133.76,133.75,1.0773967]
[1750545580897,18.64964886,133.8,133.75,1.0773967]
[1750545581063,26.0,133.77,133.75,1.0773967]
[1750545581268,26.19131143,133.76,133.75,1.0773967]
[1750545581686,26.0,133.77,133.75,1.0773967]
[1750545581894,26.19131143,133.76,133.75,1.0773967]
[1750545582501,26.0,133.77,133.75,1.0773967]
[1750545582795,52.19131143,133.77,133.75,1.0773967]
[1750545583001,26.19131143,133.76,133.75,1.0773967]
[1750545584087,13.9283915,133.87,133.76,18.64964886]
[1750545584289,13.9283915,133.87,133.8,0.72]
[1750545584290,12.53519463,133.87,133.8,0.72]
[1750545584493,26.0,133.83,133.76,0.72]
[1750545584678,26.19131143,133.8,133.77,7.47551767]
[1750545585002,26.19131143,133.81,133.77,7.47551767]
[1750545585672,26.0,133.83,133.77,34.3868291]
[1750545585869,26.19131143,133.82,133.78,26.19131143]
[1750545586285,26.19131143,133.82,133.77,34.3868291]
[1750545586492,26.0,133.83,133.77,34.3868291]
[1750545586694,26.19131143,133.82,133.77,34.3868291]
[1750545587085,26.19131143,133.82,133.77,8.19551767]
[1750545587287,26.19131143,133.82,133.77,34.3868291]
[1750545587601,26.19131143,133.82,133.77,33.6668291]
[1750545587792,6.3151,133.87,133.81,26.19131143]
[1750545588103,26.0,133.85,133.81,26.91131143]
[1750545588885,26.0,133.85,133.82,7.47272455]
[1750545589082,26.19131143,133.86,133.82,7.47272455]
[1750545589286,26.19131143,133.83,133.78,8.19495888]
[1750545589511,26.0,133.85,133.78,7.47495888]
[1750545589822,52.19131143,133.84,133.8,26.91131143]
[1750545590002,52.19131143,133.84,133.8,0.72]
[1750545590311,52.19131143,133.84,133.8,26.91131143]
[1750545590502,9.03043734,133.88,133.81,26.91131143]
[1750545590806,31.72434169,133.89,133.81,18.1405]
[1750545591014,26.19131143,133.87,133.82,33.66403598]
[1750545591182,13.67160998,133.9,133.83,26.19131143]
[1750545591382,26.19131143,133.87,133.82,7.47272455]
[1750545591587,26.0,133.87,133.83,26.19131143]
[1750545591787,26.0,133.87,133.83,26.91131143]
[1750545592310,26.0,133.87,133.84,7.47160789]
[1750545592614,52.19131143,133.87,133.84,7.47160789]
[1750545593312,12.93888399,133.94,133.86,26.91131143]
[1750545593313,13.58781156,133.94,133.86,26.91131143]
[1750545593500,26.19131143,133.93,133.88,26.19131143]
[1750545593833,26.0,133.93,133.87,0.72]
[1750545594118,26.0,133.93,133.9,26.19131143]
[1750545594293,26.0,133.93,133.91,7.46770218]
[1750545595115,26.0,133.93,133.91,26.22088273]
[1750545595318,18.75318055,133.96,133.91,26.94088273]
[1750545595817,26.0,133.95,133.91,26.94088273]
[1750545596008,18.75318055,133.96,133.92,18.75318055]
[1750545596415,44.75318055,133.96,133.93,7.46658702]
[1750545596813,18.75318055,133.96,133.93,7.46658702]
[1750545597016,69.58679226,134.0,133.94,18.75318055]
[1750545597017,39.6456,134.0,133.94,18.75318055]
[1750545597217,18.75318055,133.98,133.94,18.75318055]
[1750545597418,44.75318055,133.98,133.94,18.75318055]
[1750545597627,18.75318055,133.97,133.93,26.21976757]
[1750545598138,26.0,133.97,133.93,7.46658702]
[1750545598319,44.75318055,133.97,133.93,7.46658702]
[1750545598630,26.0,133.97,133.93,8.18658702]
[1750545598838,26.0,133.97,133.94,18.75318055]
[1750545599611,26.0,133.97,133.94,19.47318055]
[1750545600416,26.0,133.93,133.9,38.14301547]
[1750545600619,44.75318055,133.96,133.91,18.75318055]
[1750545600821,44.75318055,133.96,133.91,19.47318055]
[1750545601021,26.0,133.96,133.93,19.47318055]
[1750545601214,26.0,133.99,133.93,0.72]
[1750545601533,18.75318055,133.96,133.93,89.1]
[1750545601739,18.75318055,133.95,133.91,107.85318055]
[1750545602126,18.75318055,133.95,133.91,89.1]
[1750545602321,44.75318055,133.94,133.9,26.22100707]
[1750545602525,44.75318055,133.94,133.9,115.32100707]
[1750545602721,26.0,133.94,133.9,116.04100707]
[1750545603621,44.75318055,133.94,133.9,116.04100707]
[1750545603826,18.75318055,133.92,133.9,89.1]